bitfinex-derivatives/quotes_ETHF0:USTF0_20251021
["timestamp","ask_amount","ask_price","bid_price","bid_amount"]
[1761049585301,0.80273434,3908.8,3908.7,0.21709412]
[1761049585904,0.80273434,3908.8,3908.7,0.00299412]
[1761049587500,0.80273434,3908.8,3908.7,0.21709412]
[1761049587994,0.80273434,3908.8,3908.7,0.44099412]
[1761049588196,0.80273434,3908.8,3908.7,0.00299412]
[1761049590303,5.80273434,3908.8,3908.7,0.00299412]
[1761049591501,0.7792,3908.2,3908.1,0.46047]
[1761049591694,1.23966,3908.2,3908.1,0.46047]
[1761049591897,1.23967,3908.1,3908.0,0.68102716]
[1761049592093,1.23967,3908.1,3907.8,0.90803622]
[1761049592300,0.9085,3908.0,3907.9,0.67189]
[1761049592505,0.9085,3908.0,3907.9,0.67472121]
[1761049592707,1.36898,3908.0,3907.9,0.67472121]
[1761049593697,1.36898,3908.0,3907.9,0.21423121]
[1761049593898,1.36898,3908.0,3907.9,0.00283121]
[1761049594605,6.36898,3908.0,3907.9,0.00283121]
[1761049594807,0.46058,3907.2,3906.9,1.14338208]
[1761049595104,1.3691,3907.0,3906.9,1.14338208]
[1761049595308,1.3691,3907.0,3906.9,0.68277208]
[1761049595713,1.3691,3907.0,3906.9,1.35711705]
[1761049596215,1.3691,3907.0,3906.9,0.21373497]
[1761049596511,1.3691,3907.0,3906.9,0.00233497]
[1761049600096,0.79588,3906.4,3906.3,0.46068]
[1761049600303,1.23988,3906.3,3906.2,0.68277208]
[1761049600612,0.46071,3906.1,3906.0,0.68277208]
[1761049600908,1.36922,3906.0,3905.9,0.68277208]
[1761049601103,1.36922,3906.0,3905.0,1.93090555]
[1761049601104,0.90479,3905.4,3905.3,0.68277208]
[1761049601301,1.23999,3905.4,3905.3,0.68548205]
[1761049601503,1.23999,3905.4,3905.3,0.00270997]
[1761049603607,0.2172,3904.6,3904.5,0.68277208]
[1761049603816,0.7792,3904.4,3904.3,0.2114]
[1761049604417,0.3352,3904.3,3904.1,0.41540374]
[1761049604608,0.7792,3904.2,3904.1,0.21457062]
[1761049605822,0.5524,3904.2,3904.1,0.42497062]
[1761049606506,0.7792,3904.2,3904.1,0.42497062]
[1761049610416,0.3352,3904.2,3904.1,0.74187062]
[1761049610722,0.3352,3904.4,3904.3,1.19961]
[1761049612720,0.7792,3904.4,3904.3,0.46091]
[1761049613324,0.7792,3904.4,3904.3,0.67231]
[1761049614311,0.7792,3904.4,3904.3,0.88271]
[1761049614518,0.3352,3904.4,3904.3,1.19961]
[1761049614814,0.1293,3905.0,3904.7,1.19957]
[1761049614815,0.3352,3904.8,3904.7,1.19957]
[1761049615222,0.5524,3904.8,3904.7,1.19957]
[1761049615418,0.3352,3904.8,3904.7,1.19957]
[1761049616022,0.4645,3905.0,3904.9,1.19955]
[1761049616523,0.6817,3905.0,3904.9,0.88265]
[1761049617317,0.3352,3905.4,3905.3,0.4608]
[1761049617519,1.23999,3905.4,3905.3,0.4218]
[1761049617921,0.7792,3905.4,3905.3,0.6722]
[1761049618517,0.7792,3905.4,3905.3,0.2114]
[1761049618720,0.7792,3905.4,3905.3,0.6722]
[1761049619026,0.00312768,3906.0,3905.7,0.3168]
[1761049619223,0.5482,3905.9,3905.8,1.22003]
[1761049619422,0.7616,3905.9,3905.8,0.90323]
[1761049619728,0.7616,3905.9,3905.8,1.21183508]
[1761049620123,0.5482,3905.9,3905.8,1.52863508]
[1761049620329,0.7616,3905.9,3905.8,0.30860508]
[1761049620829,0.7616,3905.9,3904.8,0.90803622]
[1761049620830,0.5482,3904.9,3904.8,1.36465585]
[1761049621018,0.3273,3905.3,3905.1,0.46082]
[1761049621214,0.5482,3905.3,3905.2,0.4425]
[1761049621424,0.8926,3905.0,3904.9,0.68554]
[1761049621632,0.8926,3905.0,3904.9,0.90334]
[1761049622223,0.3273,3905.9,3905.7,0.46075]
[1761049622530,0.55132768,3906.0,3905.9,1.22003]
[1761049622921,0.5482,3905.6,3905.5,0.89936076]
[1761049623131,0.5482,3905.6,3905.5,0.7593]
[1761049623328,0.5482,3905.9,3905.8,1.22004]
[1761049623538,0.3273,3905.9,3905.8,1.22004]
[1761049624423,0.00312768,3906.0,3905.9,0.7593]
[1761049624619,0.00312768,3906.0,3905.9,1.66804768]
[1761049624835,0.00312768,3906.0,3905.9,0.7593]
[1761049625128,0.55132768,3906.0,3905.9,2.12185142]
[1761049625328,0.33042768,3906.0,3905.9,0.4425]
[1761049625633,0.3273,3905.8,3905.7,0.90718721]
[1761049625832,0.3273,3905.8,3905.7,0.7593]
[1761049626037,0.33042768,3906.0,3905.9,0.7593]
[1761049626333,0.68232768,3906.0,3905.9,0.4425]
[1761049626632,0.68232768,3906.0,3905.9,1.22003]
[1761049626633,0.55132768,3906.0,3905.9,1.22003]
[1761049627335,0.00312768,3906.0,3905.9,1.22003]
[1761049627637,0.89572768,3906.0,3905.9,1.13540174]
[1761049627828,0.89572768,3906.0,3905.9,1.67004647]
[1761049627829,0.00312768,3906.0,3905.9,1.67004647]
[1761049628535,0.33042768,3906.0,3905.9,1.67004647]
[1761049628736,0.89572768,3906.0,3905.9,1.35324647]
[1761049629126,1.22233,3905.9,3905.8,0.91074647]
[1761049629330,1.00895,3905.7,3905.6,1.13544647]
[1761049629529,0.3273,3905.7,3905.6,1.35324647]
[1761049629729,0.5482,3905.7,3905.6,1.67004647]
[1761049630026,0.7616,3905.7,3905.6,0.4425]
[1761049630232,0.7616,3905.7,3905.6,1.13544647]
[1761049630829,0.5482,3905.7,3905.6,1.35324647]
[1761049631029,0.35502768,3906.0,3905.9,0.4425]
[1761049631235,0.35502768,3906.0,3905.9,1.1260887]
[1761049631627,0.89572768,3906.0,3905.9,0.6835887]
[1761049632029,0.89572768,3906.0,3905.9,0.9082887]
[1761049632426,0.00312768,3906.0,3905.9,1.4428887]
[1761049632639,0.33042768,3906.0,3905.9,0.7593]
[1761049633033,0.76472768,3906.0,3905.8,1.37219161]
[1761049633240,0.89503,3905.9,3905.7,0.68345401]
[1761049633434,0.89505,3905.8,3905.5,1.59692161]
[1761049633640,0.2209,3905.6,3905.5,0.68547]
[1761049633842,0.5482,3905.6,3905.5,1.22007]
[1761049634234,0.7616,3905.6,3905.5,0.4425]
[1761049634535,0.7616,3905.6,3905.5,1.3538833]
[1761049634935,1.35338,3905.5,3905.4,0.68364321]
[1761049635143,1.35338,3905.5,3905.4,0.2247]
[1761049635541,1.35338,3905.5,3905.4,0.4425]
[1761049636746,1.35338,3905.5,3905.3,0.9113833]
[1761049636747,0.7616,3905.4,3905.3,1.1360833]
[1761049637242,0.7881,3905.3,3905.2,0.9113833]
[1761049637434,0.7881,3905.3,3904.7,0.46087]
[1761049637435,0.3273,3905.2,3905.1,0.68394819]
[1761049637635,0.131,3905.5,3904.1,0.31997062]
[1761049637636,1.22245,3904.9,3904.8,0.68394819]
[1761049640239,0.3273,3904.9,3904.8,0.7641]
[1761049640550,0.3273,3904.9,3904.8,1.6754833]
[1761049640842,0.131,3905.5,3905.1,0.4484]
[1761049640843,0.5409,3905.2,3905.1,0.4484]
[1761049641052,0.7724,3905.1,3905.0,1.36794523]
[1761049641236,0.46085,3904.9,3904.8,0.68428476]
[1761049641541,1.23325,3904.9,3904.7,0.68428476]
[1761049641846,1.23327,3904.7,3904.6,0.90678476]
[1761049642046,1.23327,3904.7,3904.6,0.68428476]
[1761049642445,1.3668,3904.5,3904.4,1.13470126]
[1761049643148,1.3668,3904.5,3904.4,1.1351504]
[1761049644649,1.3668,3904.5,3904.4,0.2225]
[1761049644952,0.7724,3904.4,3904.3,0.9126504]
[1761049646156,0.7724,3904.4,3904.3,1.1351504]
[1761049647346,1.23331,3904.4,3904.3,1.1351504]
[1761049647654,1.23331,3904.4,3904.3,0.9126504]
[1761049648253,1.23772,3904.3,3904.2,1.1321504]
[1761049649049,1.23772,3904.3,3904.2,0.2195]
[1761049649453,1.23772,3904.3,3904.1,0.91582102]
[1761049649669,1.23773,3904.2,3904.1,0.00317062]
[1761049650142,6.23773,3904.2,3904.1,0.00317062]
[1761049650748,1.23783,3903.4,3903.3,0.90392317]
[1761049650952,0.3439,3903.4,3903.3,0.7473]
[1761049651353,0.7768,3903.4,3903.3,1.11450645]
[1761049651852,0.7768,3903.4,3903.3,0.90555959]
[1761049652255,0.7768,3903.4,3903.3,0.22165314]
[1761049653159,0.7768,3903.4,3903.3,0.00215314]
[1761049653457,0.7768,3903.4,3903.3,0.74945314]
[1761049653858,0.7768,3903.4,3903.3,0.43275314]
[1761049654059,0.7768,3903.4,3903.3,0.22165314]
[1761049654260,0.7768,3903.4,3903.3,0.00215314]
[1761049655261,0.7768,3903.4,3903.3,0.74945314]
[1761049655460,0.7768,3903.4,3903.3,0.43275314]
[1761049656960,0.7768,3903.4,3903.3,0.22165314]
[1761049657157,0.7768,3903.4,3903.3,0.43275314]
[1761049657960,0.5592,3903.4,3903.3,0.74945314]
[1761049658357,1.02019,3903.8,3903.7,0.4306]
[1761049658655,0.7768,3903.8,3903.7,0.4306]
[1761049658859,0.1354,3904.0,3903.7,0.7473]
[1761049659049,0.3439,3904.0,3903.9,0.7473]
[1761049659251,0.9122,3904.0,3903.9,0.4306]
[1761049660064,0.9122,3904.0,3903.9,0.7473]
[1761049660459,0.6946,3904.0,3903.9,0.7473]
[1761049661159,0.5592,3904.0,3903.9,0.7473]
[1761049661355,0.9122,3904.0,3903.9,0.4306]
[1761049661660,0.9122,3904.0,3903.9,0.7473]
[1761049661856,0.9122,3904.0,3903.9,0.4306]
[1761049662058,0.9122,3904.0,3903.9,0.7473]
[1761049662267,0.5592,3904.0,3903.9,0.7473]
[1761049662859,0.3439,3904.7,3904.4,0.3167]
[1761049663064,1.04965003,3906.0,3904.4,0.3167]
[1761049663065,0.3439,3905.3,3905.0,0.3167]
[1761049663262,0.3439,3905.3,3905.2,0.7473]
[1761049663658,0.80466,3905.7,3905.6,0.4306]
[1761049663858,1.23756,3905.7,3905.6,0.4306]
[1761049664768,0.7768,3905.7,3905.6,0.4306]
[1761049665463,0.7768,3905.7,3905.6,0.7473]
[1761049665669,0.3439,3905.6,3905.5,0.6831261]
[1761049665867,0.7768,3905.6,3905.5,0.6831261]
[1761049666167,0.7768,3905.4,3905.3,1.3634261]
[1761049666562,0.7768,3905.4,3905.3,0.9026261]
[1761049666757,0.7768,3905.3,3905.2,0.6831261]
[1761049666954,0.5592,3905.3,3905.2,1.1137261]
[1761049667169,0.7768,3905.3,3905.2,0.9026261]
[1761049667362,0.7768,3905.3,3905.2,0.6831261]
[1761049667563,0.7768,3905.3,3905.2,0.9026261]
[1761049667870,0.7768,3905.3,3905.2,1.1137261]
[1761049668367,1.23761,3905.2,3905.1,0.6831261]
[1761049669067,0.3439,3905.2,3905.1,1.4304261]
[1761049669870,0.3439,3905.2,3905.1,0.7473]
[1761049670168,0.3439,3905.2,3905.1,1.43025256]
[1761049670365,0.3439,3905.4,3905.3,0.4306]
[1761049670572,0.5592,3905.4,3905.3,0.7473]
[1761049670767,1.02,3905.4,3905.3,0.4306]
[1761049670969,0.4329,3905.2,3905.1,0.68295256]
[1761049671172,1.23762,3905.2,3905.1,0.68295256]
[1761049671373,1.23762,3905.2,3905.1,0.90245256]
[1761049672166,0.46082,3905.2,3905.1,0.7473]
[1761049672374,1.23762,3905.2,3905.1,1.11355256]
[1761049672565,1.23762,3905.2,3905.1,0.4306]
[1761049672761,0.7768,3905.2,3905.0,0.68295256]
[1761049673061,1.23763,3905.1,3905.0,0.90245256]
[1761049673369,1.37304,3905.0,3904.8,0.68295256]
[1761049673575,1.23768,3904.7,3904.6,0.90245256]
[1761049674068,1.23768,3904.7,3904.6,0.2195]
[1761049674371,1.23768,3904.7,3904.6,0.90245256]
[1761049675466,0.7768,3904.7,3904.6,0.89149]
[1761049675670,0.7768,3904.7,3904.6,1.57444256]
[1761049675877,0.5592,3904.7,3904.6,1.89114256]
[1761049676067,0.3439,3904.7,3904.6,1.89114256]
[1761049676272,1.02006,3904.9,3904.8,0.7473]
[1761049676474,1.02006,3904.9,3904.8,0.4306]
[1761049676673,1.23766,3904.9,3904.8,0.4306]
[1761049677772,0.7798,3904.9,3904.8,0.89147]
[1761049677978,0.7798,3904.9,3904.8,1.20767]
[1761049678173,0.5592,3904.9,3904.8,1.20767]
[1761049678476,0.3439,3904.9,3904.8,1.20767]
[1761049679175,0.78843,3905.1,3905.0,0.7641]
[1761049679381,0.3276,3905.1,3905.0,1.22494]
[1761049679570,0.5432,3905.1,3905.0,1.22494]
[1761049680275,1.00403,3905.1,3905.0,0.7641]
[1761049680476,1.00403,3905.1,3904.5,1.27765]
[1761049680477,0.4362,3904.8,3904.7,0.91215256]
[1761049680683,0.4362,3904.8,3904.7,0.2292]
[1761049680684,1.22467,3904.8,3904.7,0.2292]
[1761049681179,1.22467,3904.8,3904.7,0.69008]
[1761049681575,1.22467,3904.8,3904.7,0.2292]
[1761049681781,1.22467,3904.8,3904.7,0.69008]
[1761049682775,1.22467,3904.8,3904.7,0.2292]
[1761049683076,1.22467,3904.8,3904.6,0.68295256]
[1761049683077,1.22468,3904.7,3904.6,0.68295256]
[1761049683682,1.28693,3905.0,3904.5,0.91215256]
[1761049683683,1.22469,3904.6,3904.5,0.91215256]
[1761049684984,1.22469,3904.6,3904.5,0.68295256]
[1761049685880,0.46091,3904.4,3904.3,0.68295256]
[1761049686184,1.22472,3904.3,3904.2,0.68295256]
[1761049686785,1.35956,3904.0,3903.9,0.68295256]
[1761049686977,1.35956,3904.0,3903.9,0.2292]
[1761049687188,0.3276,3904.0,3903.9,0.7641]
[1761049687386,0.5432,3904.0,3903.9,0.7641]
[1761049687681,0.678,3904.0,3903.9,0.7641]
[1761049687873,0.4624,3904.0,3903.9,0.7641]
[1761049688078,0.3276,3904.1,3904.0,0.77716]
[1761049688285,0.3276,3904.1,3904.0,2.13654637]
[1761049688785,0.5432,3904.1,3904.0,2.13654637]
[1761049688988,0.5432,3904.1,3904.0,1.67558637]
[1761049689286,0.3276,3904.9,3904.8,0.7641]
[1761049689585,0.5432,3905.1,3905.0,0.7641]
[1761049690086,0.7638,3905.1,3905.0,0.4479]
[1761049690588,0.5432,3905.1,3905.0,0.7641]
[1761049691286,0.7638,3905.1,3905.0,0.4479]
[1761049691481,0.8986,3905.0,3904.9,1.59669118]
[1761049692488,1.35944,3905.0,3904.9,1.59669118]
[1761049693889,0.8986,3905.0,3904.9,1.59669118]
[1761049695386,1.35944,3905.0,3904.9,1.59669118]
[1761049696586,0.678,3905.0,3904.9,1.22495]
[1761049696783,0.351,3905.5,3904.9,0.7641]
[1761049696996,0.3276,3905.4,3905.3,2.13719647]
[1761049697291,0.3276,3905.4,3905.3,2.5933397]
[1761049697891,0.5432,3905.4,3905.3,2.5933397]
[1761049698090,0.3371,3905.6,3905.5,0.3164]
[1761049698392,0.5591,3905.6,3905.5,2.12731592]
[1761049698595,0.5591,3905.6,3905.5,1.21528]
[1761049698788,0.3371,3905.8,3905.7,0.99076]
[1761049698987,0.5591,3905.8,3905.7,2.12723896]
[1761049699291,0.7699,3905.8,3905.7,0.89886]
[1761049699892,0.5591,3905.8,3905.7,1.21526]
[1761049700193,0.3371,3905.8,3905.7,1.21526]
[1761049700491,0.3371,3905.8,3905.7,2.12723896]
[1761049700492,0.5591,3905.8,3905.7,2.12723896]
[1761049700795,0.7699,3905.8,3905.7,1.81083896]
[1761049701687,0.5591,3905.8,3905.7,2.12723896]
[1761049701882,1.23065,3905.8,3905.7,1.35007896]
[1761049704192,1.23065,3905.8,3905.7,0.4381]
[1761049704892,1.23065,3905.8,3905.7,1.35007896]
[1761049705094,1.23065,3905.8,3905.7,0.4381]
[1761049705593,1.23065,3905.8,3905.7,0.89886]
[1761049705898,0.00312768,3906.0,3905.8,0.3164]
[1761049706193,0.00312768,3906.0,3905.9,1.21524]
[1761049706789,0.00312768,3906.0,3905.9,2.5836697]
[1761049706985,0.34022768,3906.0,3905.9,2.5836697]
[1761049707186,0.00312768,3906.0,3905.9,2.5836697]
[1761049707387,0.00312768,3906.0,3905.9,1.21524]
[1761049707586,0.00312768,3906.0,3905.9,2.5836697]
[1761049709396,0.00312768,3906.0,3905.9,1.21524]
[1761049709798,0.57302768,3906.0,3905.9,1.21524]
[1761049710093,0.57302768,3906.0,3905.9,1.80882663]
[1761049710094,0.93062768,3906.0,3905.9,1.80882663]
[1761049711688,0.93062768,3906.0,3905.9,0.2136]
[1761049712597,0.48262768,3906.0,3905.9,0.4268]
[1761049712992,1.25524,3905.9,3905.7,0.90998663]
[1761049713192,1.25525,3905.8,3905.7,0.68255734]
[1761049713996,0.3465,3905.6,3905.5,0.68255734]
[1761049714202,1.38828,3905.5,3905.4,0.68255734]
[1761049715387,0.2234,3905.3,3905.2,0.52141]
[1761049715593,0.5699,3905.3,3905.2,0.62221]
[1761049715786,0.5699,3905.3,3905.2,0.2016]
[1761049715994,0.7945,3905.3,3905.2,0.2016]
[1761049716804,0.68426,3904.9,3904.8,0.2016]
[1761049717095,0.90886,3904.9,3904.8,0.1008]
[1761049717301,1.25536,3904.9,3904.8,0.1008]
[1761049717691,1.25538,3904.7,3904.6,10.23198663]
[1761049718003,1.25538,3904.7,3904.6,9.4228]
[1761049718500,0.3465,3904.7,3904.6,10.08529]
[1761049720903,0.3465,3904.7,3904.6,10.99527663]
[1761049721197,0.3465,3905.3,3905.0,0.46083]
[1761049721388,0.3465,3905.3,3905.2,0.2016]
[1761049721389,1.03071,3905.3,3905.2,0.2016]
[1761049721588,1.25531,3905.3,3905.2,0.2016]
[1761049723805,0.7945,3905.3,3905.2,0.66242]
[1761049724000,0.3465,3905.3,3905.2,0.76322]
[1761049724200,1.03069,3905.4,3905.3,0.2016]
[1761049724410,1.25529,3905.4,3905.3,0.2016]
[1761049725597,1.25529,3905.4,3905.3,0.1008]
[1761049727103,0.2234,3905.1,3905.0,1.47393794]
[1761049727405,0.5699,3905.1,3905.0,1.57473794]
[1761049728602,0.8073,3905.4,3905.1,0.46082]
[1761049728798,1.2553,3905.4,3905.3,0.2016]
[1761049730405,1.2553,3905.4,3905.3,0.1008]
[1761049730610,0.7945,3905.2,3905.1,1.5747979]
[1761049731109,1.25532,3905.2,3905.1,0.56163]
[1761049731711,1.25532,3905.2,3905.1,0.1008]
[1761049732812,0.9275,3905.0,3904.9,1.4740179]
[1761049733016,0.9275,3905.0,3904.9,0.56165]
[1761049733409,1.38834,3905.0,3904.9,0.56165]
[1761049734110,1.38834,3905.0,3904.9,0.46085]
[1761049734408,0.9275,3905.0,3904.9,0.56165]
[1761049735209,0.9275,3905.0,3904.9,0.1008]
[1761049735210,1.38834,3905.0,3904.9,0.1008]
[1761049736606,1.25535,3904.9,3904.8,0.56166]
[1761049736815,1.25535,3904.9,3904.8,0.66246]
[1761049737114,1.25535,3904.9,3904.8,0.56166]
[1761049737905,0.3465,3904.9,3904.8,1.6750279]
[1761049738412,1.24695,3904.9,3904.8,1.5745279]
[1761049740121,0.3465,3904.9,3904.8,0.76266]
[1761049740617,1.01411,3905.3,3905.2,0.201]
[1761049740808,1.23351,3905.3,3905.2,0.201]
[1761049741209,1.23351,3905.3,3905.2,0.66182]
[1761049741510,0.7727,3905.3,3905.2,0.66182]
[1761049742513,0.5533,3905.3,3905.2,0.66182]
[1761049742720,0.5533,3905.7,3905.6,0.201]
[1761049743017,0.5533,3905.7,3905.6,0.66177]
[1761049743214,0.5525,3905.7,3905.6,0.66177]
[1761049743414,0.35752768,3906.0,3905.9,0.723]
[1761049743617,1.15522724,3906.0,3905.9,10.22863]
[1761049743915,1.15522724,3906.0,3905.9,9.7679]
[1761049744424,1.15522724,3906.0,3905.9,10.22863]
[1761049745121,1.15522724,3906.0,3905.9,9.7679]
[1761049745321,1.48832724,3906.0,3905.9,9.7679]
[1761049745718,1.94904724,3906.0,3905.9,9.7679]
[1761049745918,1.94904724,3906.0,3905.9,9.315]
[1761049746718,0.7727,3905.1,3905.0,0.2296]
[1761049747026,0.7727,3905.1,3905.0,10.037]
[1761049747226,0.5533,3905.1,3905.0,10.037]
[1761049747619,0.5533,3905.1,3905.0,10.49784]
[1761049747822,0.91094957,3905.1,3905.0,10.49784]
[1761049748225,1.13114957,3905.1,3905.0,10.49784]
[1761049748426,0.91094957,3905.1,3905.0,10.49784]
[1761049751031,0.57784957,3905.1,3905.0,10.49784]
[1761049751225,0.3331,3905.3,3905.2,1.18382]
[1761049751529,1.35069764,3905.3,3905.2,0.91372]
[1761049752837,1.35069764,3905.3,3905.2,0.2296]
[1761049753029,1.81150764,3905.3,3905.2,0.2296]
[1761049753732,0.7727,3905.1,3905.0,9.5436]
[1761049754035,1.35069764,3905.1,3905.0,9.5436]
[1761049754536,1.35069764,3905.1,3905.0,10.00443]
[1761049755337,1.35069764,3905.1,3905.0,9.5436]
[1761049756537,1.35069764,3905.1,3905.0,10.00444]
[1761049757939,1.35069764,3905.1,3905.0,10.22774]
[1761049758440,1.35069764,3905.1,3905.0,10.49774]
[1761049759042,1.13129764,3905.1,3905.0,10.49774]
[1761049759644,1.36039764,3905.1,3905.0,10.22774]
[1761049760641,1.36039764,3905.1,3905.0,10.49774]
[1761049762042,0.57799764,3905.1,3905.0,10.49774]
[1761049762244,0.3363,3905.3,3905.2,0.46082]
[1761049762542,1.1310998,3905.3,3905.2,0.90122]
[1761049762743,1.1310998,3905.3,3905.2,1.17122]
[1761049763541,0.9142998,3905.3,3905.2,1.17122]
[1761049764049,0.3363,3905.3,3905.2,1.17122]
[1761049764444,0.5531,3905.3,3905.2,1.17122]
[1761049765044,0.7822,3905.3,3905.2,0.90122]
[1761049766649,0.7822,3905.3,3905.2,1.17122]
[1761049767448,0.7822,3905.3,3905.2,0.90122]
[1761049768745,0.7822,3905.3,3905.2,0.2223]
[1761049768945,0.769,3905.2,3905.1,0.46083]
[1761049769143,0.769,3905.2,3905.1,0.69073]
[1761049769344,0.769,3905.2,3905.1,0.46083]
[1761049769747,0.769,3905.2,3905.1,0.69073]
[1761049770251,0.4367,3905.2,3905.0,9.314]
[1761049770444,0.769,3905.1,3905.0,9.314]
[1761049770844,1.22983,3905.1,3905.0,9.5439]
[1761049771046,0.769,3905.1,3905.0,10.50384]
[1761049771243,0.3323,3905.1,3905.0,10.50384]
[1761049772057,0.5552,3905.1,3905.0,10.50384]
[1761049772554,1.22983,3905.1,3905.0,9.7731]
[1761049772949,0.769,3905.1,3905.0,10.50384]
[1761049774851,0.769,3905.1,3905.0,10.23394]
[1761049775549,0.769,3905.1,3905.0,11.1465615]
[1761049775747,0.769,3905.1,3905.0,11.4164615]
[1761049776150,0.5552,3905.1,3905.0,11.4164615]
[1761049776353,0.5552,3905.1,3905.0,10.50384]
[1761049777956,0.3323,3905.3,3905.2,1.18981]
[1761049778155,0.5552,3905.3,3905.2,1.18981]
[1761049778343,0.769,3905.3,3905.2,0.91991]
[1761049778549,0.769,3905.3,3905.2,0.69071]
[1761049778851,0.769,3905.3,3905.2,0.91991]
[1761049779051,0.769,3905.3,3905.2,1.18981]
[1761049779751,0.3323,3905.3,3905.2,1.18981]
[1761049780550,0.5552,3905.3,3905.2,1.18981]
[1761049782144,0.00312768,3906.0,3905.9,0.91983]
[1761049782343,0.8966,3906.0,3905.9,9.7591]
[1761049782654,0.8966,3906.0,3905.9,9.3]
[1761049782850,0.4367,3905.7,3905.6,0.91363533]
[1761049783053,0.769,3905.7,3905.6,1.86858075]
[1761049783252,0.77105727,3905.7,3905.6,1.22484542]
[1761049784445,0.77105727,3905.7,3905.6,0.49584542]
[1761049784651,0.77105727,3905.7,3905.6,0.03507542]
[1761049784853,1.23180727,3905.7,3905.6,0.03507542]
[1761049785758,0.77105727,3905.7,3905.6,0.03507542]
[1761049786551,1.23180727,3905.7,3905.6,0.03507542]
[1761049789951,0.77105727,3905.7,3905.6,0.03507542]
[1761049791661,0.77105727,3905.7,3905.6,0.49584542]
[1761049792451,0.77105727,3905.7,3905.6,0.72574542]
[1761049792652,0.77105727,3905.7,3905.6,0.95494542]
[1761049793464,0.55725727,3905.7,3905.6,1.22484542]
[1761049793666,0.33435727,3905.7,3905.6,1.22484542]
[1761049793869,0.00205727,3905.7,3905.6,1.22484542]
[1761049794060,0.33435727,3905.7,3905.6,1.22484542]
[1761049794573,0.77105727,3905.7,3905.6,0.95494542]
[1761049794866,0.55725727,3905.7,3905.6,1.22484542]
[1761049795065,0.33435727,3905.7,3905.6,1.22484542]
[1761049796364,0.00205727,3905.7,3905.6,1.22484542]
[1761049797068,0.55725727,3905.7,3905.6,1.22484542]
[1761049798162,0.55725727,3905.7,3905.6,0.95494542]
[1761049798461,0.77895727,3905.7,3905.6,0.95494542]
[1761049799167,0.55725727,3905.7,3905.6,1.22524542]
[1761049799369,0.33435727,3905.7,3905.6,1.22524542]
[1761049799666,0.00205727,3905.7,3905.6,1.22524542]
[1761049800067,0.00205727,3905.7,3905.6,2.13714366]
[1761049800263,0.56495727,3905.7,3905.6,0.95494542]
[1761049800563,0.78665727,3905.7,3905.6,0.49417542]
[1761049800865,0.78665727,3905.7,3905.6,0.72434542]
[1761049801062,0.34315727,3905.7,3905.6,1.21974542]
[1761049801263,0.56495727,3905.7,3905.6,1.21974542]
[1761049802077,0.34315727,3905.7,3905.6,1.21974542]
[1761049802461,0.56495727,3905.7,3905.6,1.21974542]
[1761049803262,0.34315727,3905.7,3905.6,1.21974542]
[1761049803766,0.56495727,3905.7,3905.6,1.21974542]
[1761049803966,0.78665727,3905.7,3905.6,0.94944542]
[1761049804563,0.78665727,3905.7,3905.6,0.49584542]
[1761049804765,0.78665727,3905.7,3905.6,0.03507542]
[1761049804964,0.56495727,3905.7,3905.6,1.21974542]
[1761049805163,0.78665727,3905.7,3905.6,0.48867542]
[1761049805359,0.78665727,3905.7,3905.6,0.94944542]
[1761049805764,0.34315727,3905.7,3905.6,1.21974542]
[1761049805962,0.00205727,3905.7,3905.6,1.21974542]
[1761049806458,0.56495727,3905.7,3905.6,1.21974542]
[1761049807666,0.00205727,3905.7,3905.6,11.41864366]
[1761049808462,0.56495727,3905.7,3905.6,11.41864366]
[1761049808871,0.00205727,3905.7,3905.6,11.41864366]
[1761049809364,0.00205727,3905.7,3905.6,10.50674542]
[1761049809574,0.3411,3906.3,3906.2,1.1846]
[1761049809769,0.3411,3906.5,3906.4,1.18457]
[1761049809964,0.3411,3906.5,3906.4,1.36604985]
[1761049809965,0.9108,3906.5,3906.4,1.36604985]
[1761049810168,0.9108,3906.5,3906.4,0.03507542]
[1761049810371,5.9108,3906.5,3906.4,0.03507542]
[1761049810567,5.91346949,3906.5,3906.4,0.03704981]
[1761049811472,46.71346949,3906.5,3906.4,0.03704981]
[1761049811973,41.71346949,3906.5,3906.4,0.03704981]
[1761049813365,0.3411,3905.9,3905.7,0.46075]
[1761049813568,0.7846,3905.8,3905.7,0.46075]
[1761049813878,0.4435,3905.6,3905.5,0.68928]
[1761049814068,0.7846,3905.6,3905.5,0.91438]
[1761049814264,0.5629,3905.9,3905.6,0.3073]
[1761049814466,0.7846,3905.9,3905.8,0.46074]
[1761049814776,0.7846,3905.9,3905.8,0.91434]
[1761049815569,0.2218,3906.2,3906.1,0.4536]
[1761049815771,0.2218,3906.2,3906.1,1.22161]
[1761049816369,0.5629,3906.2,3906.1,1.22161]
[1761049816573,0.35066949,3906.5,3906.4,0.91427]
[1761049816781,0.35066949,3906.5,3906.4,0.7609]
[1761049817086,0.2218,3906.2,3906.1,0.91431]
[1761049817276,0.7846,3906.2,3906.1,0.68921]
[1761049817575,0.7846,3906.2,3906.1,0.91431]
[1761049817767,0.3411,3906.2,3906.1,1.22161]
[1761049818172,0.21226949,3906.5,3906.4,1.20097]
[1761049818568,0.69006949,3906.5,3906.4,1.20097]
[1761049818974,0.69006949,3906.5,3906.4,0.4334]
[1761049818975,0.90466949,3906.5,3906.4,0.4334]
[1761049819178,0.7662,3906.2,3906.1,0.68391]
[1761049820586,0.7662,3906.2,3906.1,0.89411]
[1761049820985,0.13846949,3906.5,3906.2,0.68389]
[1761049820986,0.7662,3906.3,3906.2,0.68389]
[1761049821282,0.7662,3906.3,3906.2,0.2232]
[1761049821482,0.342,3906.2,3906.1,0.46071]
[1761049821683,0.7662,3906.2,3906.1,0.68391]
[1761049822182,0.342,3906.2,3906.1,1.20101]
[1761049822482,0.7662,3906.2,3906.1,0.89411]
[1761049822676,0.342,3906.2,3906.1,1.20101]
[1761049823077,0.5516,3906.2,3906.1,1.20101]
[1761049823285,0.7662,3906.2,3906.1,0.89411]